bitfinex/quotes_ETHUSD_20260306
["timestamp","ask_amount","ask_price","bid_price","bid_amount"]
[1772805485043,1.23584952,2022.9,2021.6,7.15046581]
[1772805485748,1.23679542,2023.0,2021.6,7.15046581]
[1772805486061,0.001,2023.0,2021.8,5.94746581]
[1772805488174,0.001,2023.0,2022.1,8.0142184]
[1772805488674,0.001,2023.0,2021.8,1.23648143]
[1772805488877,0.001,2023.0,2021.9,7.14846581]
[1772805489707,1.23554413,2023.4,2021.9,1.201]
[1772805489991,0.001,2023.8,2022.8,5.94746581]
[1772805490278,1.2348728,2024.5,2023.0,5.94746581]
[1772805491486,6.37815826,2025.2,2023.0,5.94746581]
[1772805491993,6.37815826,2025.0,2023.0,5.94746581]
[1772805492192,6.37815826,2024.8,2023.1,7.18319315]
[1772805493574,1.23462887,2024.9,2023.1,7.18319315]
[1772805493764,4.93951548,2025.0,2023.1,7.18319315]
[1772805493765,1.2355698,2025.0,2023.2,5.94746581]
[1772805493970,1.23561604,2025.0,2023.2,5.94746581]
[1772805494186,0.001,2025.0,2023.6,5.94746581]
[1772805494393,0.001,2025.0,2023.7,1.201]
[1772805494591,0.001,2025.0,2023.8,1.201]
[1772805495385,6.37915826,2025.0,2023.8,1.201]
[1772805495983,6.37915826,2025.0,2023.5,2.43648307]
[1772805496486,7.61278713,2024.9,2024.3,1.0]
[1772805496998,1.2356154,2025.0,2024.3,1.0]
[1772805498592,0.001,2025.0,2024.3,1.0]
[1772805499767,0.001,2025.0,2024.3,2.23498132]
[1772805501263,0.001,2025.0,2024.3,1.0]
[1772805501494,6.37815826,2025.1,2024.2,1.2]
[1772805502686,6.37815826,2025.1,2023.7,7.18277627]
[1772805502687,7.61272616,2025.0,2023.7,7.18277627]
[1772805502996,7.61272616,2025.0,2023.7,8.38177627]
[1772805503168,7.61272616,2025.0,2023.7,1.199]
[1772805503368,6.37815826,2024.9,2023.3,7.18302773]
[1772805503572,6.37815826,2024.7,2023.2,2.43362414]
[1772805504312,6.37815826,2024.7,2023.3,5.94746581]
[1772805504677,6.37815826,2024.5,2023.2,2.43366236]
[1772805505574,6.37815826,2024.5,2023.9,0.0011]
[1772805506675,1.2349338,2024.4,2023.9,0.0011]
[1772805507204,7.61290908,2024.7,2023.9,0.0011]
[1772805507874,7.61290908,2024.7,2023.7,0.0011]
[1772805508609,1.23475082,2024.7,2023.7,0.0011]
[1772805508812,0.001,2024.8,2023.8,5.94746581]
[1772805508976,6.37915826,2024.8,2023.7,0.0011]
[1772805509377,1.199,2024.7,2023.7,0.0011]
[1772805509576,6.37815826,2024.6,2023.7,0.0011]
[1772805510401,7.57615826,2024.6,2023.7,0.0011]
[1772805510580,6.37815826,2024.6,2023.7,0.0011]
[1772805510787,1.2348728,2024.5,2023.7,0.0011]
[1772805511007,7.61303106,2024.5,2023.7,0.0011]
[1772805511405,2.4328728,2024.5,2023.7,0.0011]
[1772805511613,1.2348728,2024.5,2023.7,0.0011]
[1772805512825,6.40174221,2024.8,2023.7,0.0011]
[1772805513600,7.59874221,2024.8,2023.7,0.0011]
[1772805513790,6.40174221,2024.8,2023.7,0.0011]
[1772805514001,1.197,2024.7,2023.7,0.0011]
[1772805514204,6.40174221,2024.8,2023.7,0.0011]
[1772805514408,0.001,2024.8,2023.7,0.0011]
[1772805515503,0.001,2024.8,2023.7,6.01678528]
[1772805515895,4.93785252,2025.2,2023.8,6.01568528]
[1772805516100,4.93706121,2025.5,2024.0,6.01568528]
[1772805516413,7.63500535,2025.5,2024.2,6.01568528]
[1772805516791,7.63500535,2025.5,2024.3,1.23499481]
[1772805517102,6.40074221,2025.3,2024.0,4.94066455]
[1772805517807,6.40074221,2025.3,2024.0,1.23517786]
[1772805518124,0.001,2024.5,2024.0,1.23517786]
[1772805518907,0.001,2024.5,2023.9,1.1861]
[1772805521030,0.001,2024.5,2024.0,1.23517786]
[1772805521528,1.23462887,2024.9,2024.0,1.23517786]
[1772805522428,1.23462887,2024.9,2023.9,2.42129686]
[1772805523033,4.93851548,2025.0,2023.9,2.42129686]
[1772805523906,4.9382716,2025.4,2024.0,6.01568528]
[1772805524114,4.93802775,2025.3,2024.0,6.01568528]
[1772805524318,6.40074221,2025.2,2024.0,6.01568528]
[1772805524529,6.40074221,2025.2,2023.9,2.42129686]
[1772805524836,6.40074221,2025.2,2023.9,8.43698214]
[1772805525031,1.23450693,2025.1,2023.9,8.43698214]
[1772805525423,1.23450693,2025.1,2024.0,6.01568528]
[1772805525625,1.23450693,2025.1,2024.1,2.51158551]
[1772805525825,7.63500535,2025.5,2024.2,6.01568528]
[1772805526335,1.23401944,2025.9,2024.2,6.01568528]
[1772805526536,7.63476165,2025.9,2024.2,6.01568528]
[1772805527052,7.63476165,2025.9,2024.4,6.01568528]
[1772805527053,7.63482257,2025.8,2024.4,6.01568528]
[1772805527255,2.42208036,2025.8,2024.5,1.179]
[1772805527427,6.40074221,2025.7,2024.5,1.179]
[1772805527943,6.40074221,2025.5,2024.5,1.179]
[1772805528946,6.40074221,2025.3,2024.1,3.74668568]
[1772805529317,0.001,2024.9,2024.1,3.74668568]
[1772805529523,0.001,2024.9,2024.0,2.4121379]
[1772805529948,0.001,2024.9,2024.1,6.01568528]
[1772805530619,0.001,2024.9,2024.2,6.01568528]
[1772805531015,0.001,2024.9,2024.3,1.23499481]
[1772805531448,0.001,2024.9,2024.3,7.25068009]
[1772805533043,1.23432408,2025.4,2024.3,7.25068009]
[1772805535251,1.23430835,2025.5,2024.3,7.25068009]
[1772805536955,7.44998218,2025.5,2024.4,1.174]
[1772805537330,7.44998218,2025.5,2024.5,1.2348728]
[1772805537528,7.44998218,2025.5,2024.3,6.01568528]
[1772805537822,6.21567383,2025.4,2024.1,1.173]
[1772805538057,6.21567383,2025.2,2024.1,1.173]
[1772805538253,6.21567383,2025.0,2024.0,1.173]
[1772805539327,7.4503027,2024.9,2024.0,1.173]
[1772805540436,6.21567383,2024.8,2024.0,1.173]
[1772805540636,6.21567383,2024.8,2024.0,2.40817367]
[1772805540948,6.21567383,2024.8,2023.9,0.0011]
[1772805541147,6.21567383,2024.8,2024.3,0.0011]
[1772805541555,7.45042465,2024.7,2024.3,0.0011]
[1772805541736,7.45042465,2024.7,2024.0,0.0011]
[1772805542744,8.62742465,2024.7,2024.0,0.0011]
[1772805542943,6.27137227,2024.2,2023.4,0.0011]
[1772805543148,2.32707031,2024.3,2023.4,0.0011]
[1772805543149,6.27137227,2024.0,2023.4,0.0011]
[1772805543543,1.23523889,2023.9,2023.4,0.0011]
[1772805545967,1.23505582,2024.2,2023.4,0.0011]
[1772805546260,7.50634395,2024.4,2023.4,0.0011]
[1772805546467,1.23497168,2024.4,2023.4,6.12480985]
[1772805547170,4.93924816,2024.6,2023.4,6.12480985]
[1772805547538,6.27137227,2024.5,2023.4,1.23662473]
[1772805547960,6.27137227,2024.0,2023.4,0.0011]
[1772805548265,1.177,2024.2,2023.4,0.0011]
[1772805548464,7.44837227,2024.2,2023.4,0.0011]
[1772805549367,6.27137227,2024.0,2023.4,0.0011]
[1772805549572,1.23523889,2023.9,2023.4,0.0011]
[1772805549779,7.50661116,2023.9,2022.6,7.36273722]
[1772805549975,7.50661116,2023.9,2022.6,6.12670985]
[1772805550136,6.27137227,2023.8,2022.6,7.36273767]
[1772805550342,7.44837227,2023.8,2022.6,7.36273767]
[1772805550666,6.27137227,2023.8,2022.6,7.36273767]
[1772805550961,1.23523889,2023.9,2022.6,7.36273767]
[1772805551265,1.23523889,2023.9,2022.6,0.003]
[1772805551266,6.27137227,2023.8,2022.6,0.003]
[1772805551597,7.50673324,2023.7,2022.6,0.003]
[1772805552101,1.176,2023.6,2022.6,0.003]
[1772805552272,6.27137227,2023.5,2022.6,0.003]
[1772805552476,6.27137227,2023.3,2022.6,0.003]
[1772805553568,1.23566627,2023.2,2022.6,0.003]
[1772805554668,7.5066722,2023.8,2022.6,0.003]
[1772805554894,7.5066722,2023.8,2022.8,0.0011]
[1772805555090,0.001,2023.7,2022.8,0.0011]
[1772805555704,0.001,2023.7,2022.8,7.36072046]
[1772805555871,1.2348728,2024.5,2022.8,7.36072046]
[1772805556071,1.2348728,2024.5,2022.9,6.12370985]
[1772805556515,1.23462887,2024.9,2022.9,6.12370985]
[1772805556721,7.50600114,2024.9,2022.9,6.12370985]
[1772805556998,1.23462887,2024.9,2023.1,6.12370985]
[1772805557199,1.23462887,2024.9,2023.3,6.12370985]
[1772805557699,1.23444598,2025.2,2023.5,6.12370985]
[1772805558113,7.50581825,2025.2,2023.5,6.12370985]
[1772805558274,6.27137227,2025.0,2023.5,6.12370985]
[1772805558673,1.176,2024.9,2023.5,6.12370985]
[1772805558874,7.44737227,2024.9,2023.5,6.12370985]
[1772805559181,7.44737227,2024.9,2023.3,1.23557639]
[1772805559378,6.27137227,2024.9,2023.3,7.35928624]
[1772805559607,1.23468984,2024.8,2023.3,7.35928624]
[1772805559812,6.27137227,2024.7,2023.3,7.35928624]
[1772805560299,6.27137227,2024.7,2023.3,7.35927144]
[1772805561772,7.50618408,2024.6,2023.3,7.35927144]
[1772805562580,7.50618408,2024.6,2023.3,1.23556159]
[1772805563087,7.50618408,2024.6,2023.3,7.35927144]
[1772805563285,1.23481181,2024.6,2023.3,7.35927144]
[1772805563611,7.50618408,2024.6,2023.3,7.35927144]
[1772805564099,1.23481181,2024.6,2023.3,7.35927144]
[1772805565078,6.27137227,2025.0,2023.5,6.12370985]
[1772805566005,1.23462887,2024.9,2023.6,7.35913187]
[1772805566202,7.50600114,2024.9,2023.6,7.35913187]
[1772805566507,7.44537227,2024.8,2023.2,6.12370985]
[1772805566885,6.27137227,2024.5,2023.1,1.157]
[1772805567205,6.27137227,2024.2,2023.1,1.157]
[1772805567379,6.27137227,2024.0,2023.1,1.157]
[1772805567902,6.27137227,2023.8,2022.8,0.0011]
[1772805568102,6.27137227,2023.8,2023.4,0.0011]
[1772805568305,6.27137227,2023.8,2022.8,0.0011]
[1772805568508,6.27137227,2023.8,2023.2,0.0011]
[1772805570187,6.27137227,2023.6,2023.2,0.0011]
[1772805570409,6.27137227,2023.6,2022.9,0.0011]
[1772805571397,6.27137227,2023.4,2022.9,0.0011]
[1772805572819,1.23560519,2023.3,2022.9,0.0011]
[1772805572981,7.2114706,2023.3,2022.6,0.003]
[1772805573180,7.2114706,2023.3,2022.3,0.0011]
[1772805573713,5.97586541,2023.0,2021.8,0.003]
[1772805574011,5.97586541,2022.8,2021.8,0.003]
[1772805574222,5.97586541,2022.7,2021.8,0.003]
[1772805574713,5.97586541,2022.5,2021.8,0.003]
[1772805574888,5.97586541,2022.3,2021.8,0.003]
[1772805575090,7.14886541,2022.2,2021.8,0.003]
[1772805575412,7.14886541,2022.1,2021.4,0.0011]
[1772805575592,1.173,2022.0,2021.4,0.0011]
[1772805575786,5.97586541,2022.1,2021.4,0.0011]
[1772805576003,7.14886541,2022.3,2021.4,0.0011]
[1772805576201,5.97586541,2022.3,2021.4,0.0011]
[1772805576728,5.97586541,2022.1,2021.4,0.0011]
[1772805577293,1.23627732,2022.2,2021.4,0.0011]
[1772805577910,7.21214273,2022.2,2021.4,0.0011]
[1772805580099,7.21214273,2022.2,2021.6,0.0011]
[1772805582222,5.97586541,2022.1,2021.4,0.0011]
[1772805582723,1.2363996,2022.0,2021.4,0.0011]
[1772805582928,7.21226501,2022.0,2021.4,0.0011]
[1772805583226,7.21226501,2022.0,2020.4,7.33486022]
[1772805583428,7.14786541,2021.9,2020.4,7.33486022]
[1772805583728,1.2363996,2022.0,2020.4,7.33486022]
[1772805583898,8.38426501,2022.0,2020.4,7.33486022]
[1772805584323,5.97586541,2021.8,2020.4,7.33486022]
[1772805584822,1.23658307,2021.7,2020.4,7.33486022]
[1772805585504,1.23658307,2021.7,2020.6,6.09748149]
[1772805586197,7.21244848,2021.7,2020.6,6.09748149]
[1772805586422,7.21244848,2021.7,2020.5,7.24148149]
[1772805587131,7.21244848,2021.7,2020.6,1.23725626]
[1772805587505,7.21244848,2021.7,2020.7,6.09748149]
[1772805587802,7.21244848,2021.7,2020.6,1.23725626]
[1772805588217,2.40858307,2021.7,2020.4,1.23737873]
[1772805588544,7.14786541,2021.6,2020.4,1.23737873]
[1772805588742,5.97586541,2021.4,2020.3,1.23741177]
[1772805589248,5.97586541,2021.4,2020.3,1e-08]
[1772805589249,7.21269319,2021.3,2020.3,1e-08]
[1772805589683,5.97586541,2020.3,2018.4,0.1604708]
[1772805589958,1.172,2021.2,2018.4,0.1604708]
[1772805589959,5.97586541,2020.8,2019.1,6.09748149]
[1772805590323,8.30293572,2020.8,2019.1,6.09748149]
[1772805590643,8.30293572,2020.8,2019.3,6.09748149]
[1772805590834,5.97586541,2020.7,2019.4,1.133]
[1772805591060,8.30293572,2021.1,2019.5,6.09748149]
[1772805591362,8.30293572,2021.1,2019.7,6.09748149]
[1772805591363,7.21287679,2021.0,2019.7,6.09748149]
[1772805591659,8.30293572,2020.9,2019.8,1.8853]
[1772805591966,5.97586541,2020.8,2019.7,1.8853]
[1772805592131,5.97586541,2020.8,2019.6,9.23786888]
[1772805592317,5.97586541,2020.8,2020.2,0.0011]
[1772805592750,5.97586541,2020.8,2020.2,9.8864]
[1772805593158,0.001,2021.1,2020.3,1.23743998]
[1772805593531,0.001,2021.1,2020.4,9.8853]
[1772805594054,7.2125117,2021.6,2020.3,7.33492147]
[1772805594241,7.2125117,2021.6,2020.4,9.8843]
[1772805595358,7.2125117,2021.6,2020.5,1.23731749]
[1772805595857,7.2125117,2021.6,2020.6,9.8843]
[1772805596043,7.2125117,2021.6,2020.7,1.135]
[1772805596228,7.2125117,2021.6,2020.6,9.8843]
[1772805596428,5.90958618,2021.3,2020.2,0.0011]
[1772805596729,5.90958618,2021.3,2020.3,9.8843]
[1772805597126,7.08258618,2021.3,2020.0,0.0011]
[1772805597323,1.2371338,2020.8,2020.0,0.0011]
[1772805597931,7.14671998,2020.8,2020.0,0.0011]
[1772805598855,2.4101338,2020.8,2020.0,0.0011]
[1772805599023,5.90958618,2020.7,2020.0,0.0011]
[1772805599225,5.90958618,2020.7,2018.4,5.11470788]
[1772805599445,5.90958618,2020.7,2018.6,6.1304259]
[1772805599446,4.94986373,2020.3,2018.6,6.1304259]
[1772805599650,4.0,2020.6,2018.6,6.1304259]
[1772805599651,1.23731749,2020.5,2018.6,6.1304259]
[1772805599849,1.23731749,2020.5,2018.8,6.1304259]
[1772805600056,1.23731749,2020.5,2019.0,6.1304259]
[1772805600057,7.14690367,2020.5,2019.0,6.1304259]
[1772805600333,5.90958618,2020.1,2018.5,1.23854347]
[1772805600553,3.32646587,2020.2,2018.4,2.53602139]
[1772805600554,5.90958618,2019.6,2018.4,2.53602139]
[1772805600727,5.90958618,2019.9,2018.4,7.52944729]
[1772805600926,5.90958618,2019.7,2018.5,1.138]
[1772805601132,4.0,2020.0,2018.5,7.2684259]
[1772805601359,5.23766292,2020.0,2018.6,7.36890801]
[1772805601557,5.90958618,2019.9,2018.7,1.138]
[1772805602241,5.90958618,2019.9,2018.6,7.49509822]
[1772805602437,7.39382894,2020.9,2018.8,7.39561611]
[1772805602627,7.39382894,2020.9,2018.8,6.25661611]
[1772805602831,6.15675635,2020.6,2018.8,6.25661611]
[1772805603034,6.15675635,2020.2,2018.9,1.14]
[1772805603256,6.15675635,2020.6,2018.9,7.39661611]
[1772805603457,7.39406157,2020.6,2019.1,6.25661611]
[1772805603860,1.23730522,2020.6,2019.3,6.25661611]
[1772805604092,5.01257874,2021.5,2019.3,6.25661611]
[1772805604093,6.15675635,2021.4,2019.3,6.25661611]
[1772805604246,6.15675635,2021.4,2019.5,6.25661611]
[1772805604579,6.15675635,2021.8,2019.7,6.25661611]
[1772805605172,8.49492222,2021.6,2019.9,6.25661611]
[1772805605386,6.15675635,2021.6,2019.9,6.25661611]
[1772805605533,1.23670541,2021.5,2020.0,7.49423987]
[1772805605740,2.33816587,2021.1,2019.6,7.49444496]
[1772805605968,6.15675635,2021.0,2019.6,1.23782885]
[1772805606166,6.15675635,2021.0,2019.7,0.0011]
[1772805606464,1.23670541,2021.5,2019.8,1.143]
[1772805606465,8.49492222,2020.8,2019.8,1.143]
[1772805606655,8.49492222,2020.8,2019.7,0.0011]
[1772805606656,8.49492222,2020.5,2019.7,0.0011]
[1772805606862,6.15675635,2020.5,2019.7,0.0011]
[1772805607264,3.47595086,2020.9,2019.2,1.1441]
[1772805607265,6.15675635,2020.2,2019.2,1.1441]
[1772805607446,7.39431884,2020.1,2019.2,0.0011]
[1772805607653,6.15675635,2019.9,2019.2,0.0011]
[1772805609363,6.15675635,2019.8,2019.2,0.0011]
[1772805609578,7.39456394,2019.7,2019.2,0.0011]
[1772805610396,7.39456394,2019.7,2018.4,1.3990263]
[1772805610397,7.39456394,2019.7,2018.4,2.54307274]
[1772805610703,7.39456394,2019.7,2018.4,2.54407397]
[1772805610873,1.23780759,2019.7,2018.4,2.54407397]
[1772805611084,1.23743998,2020.3,2018.5,6.25661611]
[1772805611262,7.39419633,2020.3,2018.5,6.25661611]
[1772805611470,6.15675635,2020.0,2018.4,0.1604708]
[1772805611708,6.15675635,2019.8,2018.4,1.39903908]
[1772805611915,6.15675635,2019.6,2018.4,1.39906441]
[1772805612217,6.18529635,2019.6,2018.4,2.54406872]
[1772805612419,6.18529635,2019.6,2018.4,0.1604708]
[1772805612719,6.15675635,2019.4,2018.4,0.1604708]
[1772805612886,6.15675635,2019.4,2017.8,4.9558248]
[1772805612887,6.18529635,2019.4,2017.5,6.25661611]
[1772805613087,6.18529635,2019.4,2017.6,2.38409595]
[1772805613390,6.15675635,2019.2,2017.5,1.23911596]
[1772805613582,6.15675635,2019.0,2017.5,8.64073207]
[1772805613783,6.18529635,2019.0,2017.6,1.145]
[1772805614011,6.18529635,2019.0,2017.5,1.23911596]
[1772805614411,6.18529635,2019.0,2017.5,2.38411596]
[1772805614612,4.0,2018.9,2017.5,2.38411596]
[1772805614808,6.15375635,2018.8,2017.5,1.23911596]
[1772805615008,6.18229635,2018.8,2017.5,1.23911596]
[1772805615525,7.39517711,2018.7,2017.5,1.23911596]
[1772805615819,7.39517711,2018.7,2017.5,1.145]
[1772805615820,7.42371711,2018.7,2017.5,1.145]
[1772805616020,0.02854,2018.7,2017.5,7.40161611]
[1772805616314,0.02854,2018.7,2017.4,1.27018477]
[1772805616315,7.39468653,2019.5,2017.6,7.40161611]
[1772805617396,1.23793018,2019.5,2017.6,7.40161611]
[1772805617715,7.60106164,2019.9,2018.0,6.25661611]
[1772805617716,1.23773396,2019.9,2018.0,6.25661611]
[1772805617907,6.15675635,2020.7,2018.4,6.25661611]
[1772805618108,6.15675635,2020.7,2018.6,6.25661611]
[1772805618716,6.15675635,2020.7,2018.6,6.23661611]
[1772805619110,6.15675635,2019.8,2018.3,1.145]
[1772805619308,6.15675635,2019.8,2018.3,7.40161611]
[1772805619508,1.23780759,2019.7,2018.4,1.23860483]
[1772805621295,1.23780759,2019.7,2018.5,1.145]
[1772805621514,1.23780759,2019.7,2018.4,1.23860483]
[1772805621719,1.23780759,2019.7,2018.5,1.145]
[1772805622203,1.23780759,2019.7,2018.4,1.23860483]
[1772805622408,1.23780759,2019.7,2018.5,1.145]
[1772805622728,1.23756249,2020.1,2018.5,7.40161611]
[1772805623225,7.39401261,2020.6,2018.5,7.40161611]
[1772805623422,7.39401261,2020.6,2018.5,6.25661611]
[1772805623598,7.39401261,2020.6,2018.6,8.64009822]
[1772805623599,6.15675635,2020.5,2018.6,8.64009822]
[1772805623793,6.15675635,2020.5,2018.7,6.25661611]
[1772805624226,6.15675635,2020.3,2018.7,6.25661611]
[1772805624428,7.14505635,2020.3,2018.8,1.145]
[1772805625194,6.15675635,2019.7,2018.3,1.145]
[1772805625796,1.23786888,2019.6,2018.4,1.23860483]
[1772805626112,1.23786888,2019.6,2018.3,2.38361976]
[1772805626306,7.39462523,2019.6,2017.8,6.25661611]
[1772805626631,7.39462523,2019.6,2018.0,6.25661611]
[1772805628228,7.39462523,2019.6,2018.1,1.23878895]
[1772805628452,7.39462523,2019.6,2017.9,1.145]
[1772805628600,6.15675635,2019.2,2017.8,1.23897313]
[1772805628928,7.39462523,2019.6,2017.8,7.49558924]
[1772805629713,6.15675635,2019.4,2017.9,1.141]
[1772805630234,1.23805279,2019.3,2018.1,1.23878895]
[1772805630459,1.23780759,2019.7,2018.3,6.25661611]
[1772805630929,1.23780759,2019.7,2018.3,1.141]
[1772805630930,0.001,2019.6,2018.3,1.141]
[1772805631112,0.001,2019.6,2018.3,7.39761611]
[1772805632213,0.001,2019.6,2018.4,2.38060483]
[1772805632401,5.98162226,2019.6,2018.2,1.23979575]
[1772805632600,1.23768503,2020.0,2018.2,1.23979575]
[1772805632601,1.23768503,2020.0,2018.4,6.49921444]
[1772805632801,4.95098524,2019.9,2018.4,6.49921444]
[1772805633001,4.95098524,2019.9,2018.3,2.5386662]
[1772805633002,5.98062226,2019.8,2018.3,2.3806662]
[1772805633232,5.98062226,2019.8,2018.3,1.142]
[1772805633528,5.98062226,2019.3,2018.2,0.0011]
[1772805633729,5.98062226,2019.3,2018.2,1.23982646]
[1772805633931,5.98062226,2019.3,2018.2,0.0011]
[1772805634133,1.2381141,2019.2,2018.2,0.0011]
[1772805634359,7.21873636,2019.2,2018.2,0.0011]
[1772805634525,1.23809913,2019.3,2018.2,0.0011]
[1772805634713,7.21872139,2019.3,2018.2,0.0011]
[1772805635452,7.17062226,2019.2,2018.2,0.0011]
[1772805635739,7.17062226,2019.2,2018.0,0.0011]
[1772805635905,5.98062226,2019.2,2018.0,0.0011]
[1772805636110,1.23842076,2018.7,2017.7,0.0011]
[1772805636338,5.98062226,2018.6,2017.7,0.0011]
[1772805636665,5.98062226,2018.6,2016.8,6.49921444]
[1772805636666,0.03319999,2017.4,2015.9,1.06288783]
[1772805636813,1.2242,2017.3,2015.9,1.06288783]
[1772805637145,5.98062226,2016.8,2015.9,1e-08]
[1772805637318,1.191,2016.8,2015.9,1e-08]
[1772805637527,5.98062226,2016.5,2015.9,1e-08]
[1772805637818,0.14948499,2017.2,2012.7,1.51046695]
[1772805637819,5.98062226,2016.2,2014.4,6.65968524]
[1772805638132,5.98062226,2016.7,2014.4,6.65968524]
[1772805638656,2.34371023,2017.2,2014.6,6.49921444]
[1772805638657,5.98062226,2017.0,2014.6,6.49921444]
[1772805638860,7.17362226,2017.3,2014.8,6.49921444]
[1772805639139,5.98062226,2017.3,2015.2,6.49921444]
[1772805639372,4.67881151,2017.4,2015.6,6.49921444]
[1772805639373,0.03319999,2017.4,2015.6,6.49921444]
[1772805639528,0.03319999,2017.4,2015.8,6.49921444]
[1772805639732,5.98062226,2016.7,2014.7,0.28162597]
[1772805640068,5.98062226,2015.8,2014.8,0.1085834]
[1772805640230,5.98062226,2015.8,2014.4,0.1604708]
[1772805640438,2.66465627,2015.9,2014.4,1.40150482]
[1772805640629,2.21337464,2015.9,2014.4,0.1604708]
[1772805640934,5.98062226,2015.3,2013.3,7.74095685]
[1772805641348,5.98062226,2015.8,2013.3,7.74095685]
[1772805641572,5.98062226,2016.3,2013.3,7.74095685]
[1772805642079,5.98062226,2016.1,2013.3,7.74095685]
[1772805642225,7.32910725,2016.0,2013.3,7.74095685]
[1772805642430,7.32910725,2016.0,2013.9,6.49921444]
[1772805642431,0.47047,2016.0,2013.9,6.49921444]
[1772805642666,1.71056732,2016.0,2014.3,6.49921444]
[1772805642877,1.24014088,2015.9,2014.3,6.49921444]
[1772805643075,6.45109226,2015.9,2014.3,6.49921444]
[1772805643430,6.45109226,2015.9,2013.7,1.24149575]
[1772805643431,5.98062226,2015.7,2013.8,6.49921444]
[1772805643662,1.201,2015.6,2013.8,6.49921444]
[1772805643862,6.45109226,2015.6,2013.8,6.49921444]
[1772805644372,1.240387,2015.5,2013.9,1.24137246]
[1772805644537,7.22100926,2015.5,2013.9,7.7405869]
[1772805645266,5.98062226,2014.8,2013.5,0.0011]
[1772805645446,5.98062226,2014.8,2013.5,1.24269803]
[1772805645638,5.98062226,2014.8,2013.5,0.0011]
[1772805645846,1.205,2014.7,2013.5,1.24268126]
[1772805646164,0.47047,2014.7,2013.5,1.24271225]
[1772805646371,0.47047,2014.7,2013.5,0.0011]
[1772805646863,5.98062226,2014.6,2013.5,0.0011]
[1772805647159,0.47047,2014.6,2013.6,6.49921444]
[1772805647337,0.47047,2014.6,2013.5,0.0011]
[1772805648534,0.47047,2014.6,2013.5,6.50031444]
[1772805648735,7.22096195,2015.6,2013.5,6.50031444]
[1772805648936,5.98062226,2015.4,2013.5,6.50031444]
[1772805649271,5.98062226,2014.8,2013.5,0.0011]
[1772805649565,5.98062226,2014.6,2013.5,0.0011]
[1772805650036,5.98062226,2014.6,2013.3,0.0011]
[1772805650037,5.98062226,2014.4,2013.3,0.0011]
[1772805650239,5.98062226,2014.2,2013.3,0.0011]
[1772805650449,1.24124919,2014.1,2013.3,0.0011]
[1772805650647,7.22187145,2014.1,2013.3,0.0011]
[1772805650848,5.98062226,2014.0,2013.3,0.0011]
[1772805651068,7.19362226,2014.0,2013.3,0.0011]
[1772805651253,5.98062226,2014.0,2013.3,0.0011]
[1772805651455,1.213,2013.9,2013.3,0.0011]
[1772805651656,1.24106433,2014.4,2013.3,0.0011]
[1772805651978,1.24095824,2014.6,2013.3,0.0011]
[1772805652349,7.2215805,2014.6,2013.3,0.0011]
[1772805653888,5.98062226,2014.4,2013.3,0.0011]
[1772805654490,7.19762226,2014.3,2013.3,0.0011]
[1772805654640,7.19762226,2014.3,2011.6,6.49921444]
[1772805654641,5.98062226,2013.8,2011.6,6.49921444]
[1772805654853,5.98062226,2013.8,2011.8,6.24393545]
[1772805655445,7.19962226,2013.8,2011.8,6.24393545]
[1772805655771,5.98062226,2013.8,2011.8,6.24393545]
[1772805655973,1.22,2013.7,2013.5,0.0011]
[1772805656172,5.98062226,2013.8,2011.8,6.24393545]
[1772805656386,5.95681457,2013.6,2011.8,6.24393545]
[1772805656549,7.19855698,2013.3,2011.6,1.2427918]
[1772805656752,7.19855698,2013.3,2013.0,0.0011]
[1772805656957,1.17778393,2013.2,2011.6,1.2427918]
[1772805657265,1.222,2013.1,2011.6,1.2427918]
[1772805657470,1.222,2013.1,2011.6,7.48672725]
[1772805657768,5.95681457,2013.2,2011.6,7.48672725]
[1772805657968,1.222,2013.1,2011.6,7.48672725]
[1772805658182,5.95681457,2013.2,2011.6,7.48672725]
[1772805658380,7.19837197,2013.6,2011.6,7.48672725]
[1772805658578,1.24137246,2013.9,2011.6,7.48672725]
[1772805658787,7.19818703,2013.9,2011.6,7.48672725]
[1772805659178,5.95681457,2013.8,2011.8,6.24393545]
[1772805659394,7.18081457,2013.8,2011.8,6.24393545]
[1772805659570,5.95681457,2013.6,2011.7,6.24393545]
[1772805659955,1.225,2013.5,2011.7,6.24393545]
[1772805660192,5.95681457,2013.6,2011.7,6.24393545]
[1772805660552,1.24161907,2013.5,2011.9,6.24393545]
[1772805660889,7.18281457,2013.5,2011.8,1.24266825]
[1772805661113,5.95681457,2013.3,2011.1,1.24310079]
[1772805661269,5.95681457,2013.1,2011.1,7.48703624]
[1772805662058,6.11777874,2012.9,2011.1,7.48703624]
[1772805662258,6.11777874,2012.9,2011.0,0.0086991]
[1772805662456,6.11777874,2012.7,2011.0,1.25184736]
[1772805662680,1.24223602,2012.5,2011.0,1.25184736]
[1772805662864,7.36001476,2012.5,2011.0,1.25184736]
[1772805663071,6.11777874,2012.5,2011.0,7.62813333]
[1772805663558,7.34677874,2012.5,2011.0,7.62813333]
[1772805663758,6.11777874,2012.5,2011.0,7.62813333]
[1772805664276,6.11777874,2012.3,2011.0,1.25184736]
[1772805664476,6.11777874,2012.3,2011.0,0.0086991]
[1772805664697,6.11777874,2011.9,2011.0,1.25186088]
[1772805664874,1.24254473,2012.0,2011.0,1.25186088]
[1772805665482,7.36013822,2012.3,2011.0,1.25186088]
[1772805666398,1.24211258,2012.7,2011.0,7.62814685]
[1772805666700,4.9675381,2013.1,2011.0,7.62814685]
[1772805666887,7.35958433,2013.2,2011.2,6.37628597]
[1772805667276,8.59258433,2013.2,2011.2,6.37628597]
[1772805667488,6.11777874,2013.1,2011.2,6.37628597]
[1772805668034,1.24161907,2013.5,2011.2,6.37628597]
[1772805668304,6.11777874,2014.7,2012.1,1.69702297]
[1772805668603,1.57799505,2014.8,2012.7,1.24211258]
[1772805668800,1.57799505,2014.8,2012.8,6.37628597]
[1772805668969,1.57799505,2014.8,2013.0,6.37628597]
[1772805669167,0.33713109,2014.8,2013.0,6.37628597]
[1772805669670,0.001,2014.9,2013.2,6.37628597]
[1772805670186,0.001,2014.9,2013.6,6.37628597]
[1772805670386,0.001,2014.9,2013.8,6.37628597]
[1772805670577,6.11777874,2016.2,2013.8,6.44182197]
[1772805670784,5.29697825,2016.4,2014.2,6.44182197]
[1772805670785,0.33742547,2016.4,2014.2,6.44182197]
[1772805670970,1.23943823,2017.1,2015.0,6.37628597]
[1772805671194,1.23943823,2017.1,2014.3,1.63948499]
[1772805671195,1.23943823,2017.1,2015.2,6.37628597]
[1772805671370,1.23943823,2017.1,2015.3,1.184]